fUSD/lending_fUSD_20260219
["ID","MTS","AMOUNT","RATE_DAILY","PERIOD"]
[405974417,1771487460325,-296.87024122,0.00017999,2]
[405974418,1771487460335,-582028.49149437,0.00018,2]
[405974419,1771487460344,-501.01,0.00018,2]
[405974420,1771487460354,-1072547.87927265,0.00018,2]
[405974421,1771487460955,-152.0,7.399e-05,2]
[405974422,1771487460965,-153.0,7.399e-05,2]
[405974423,1771487460974,-500.81315308,8.643e-05,2]
[405974424,1771487460984,-59.13036729,0.0001612,2]
[405974425,1771487460996,-447.86963271,0.0001612,2]
[405974426,1771487461006,-507.0,0.00017118,2]
[405974427,1771487461016,-796.32174694,0.000179,2]
[405974428,1771487461027,-10087.33215853,0.000179,2]
[405974429,1771487461037,-928325.56772258,0.00018,2]
[405974430,1771487461088,-442.07390442,0.00018,2]
[405974431,1771487467030,-3334164.13536514,0.00018,2]
[405974432,1771487467051,-1705236.0797556,0.00018,2]
[405974433,1771487467069,-286546.20730133,0.00018,2]
[405974434,1771487467078,-150.0,0.00018,2]
[405974435,1771487467087,-3157.58050803,0.00018,2]
[405974436,1771487467097,-150.0,0.00018,2]
[405974437,1771487467108,-11075.71513683,0.00018,2]
[405974438,1771487467117,-150.0,0.00018,2]
[405974439,1771487467126,-4096.99442107,0.00018,2]
[405974440,1771487467136,-1040096.66103846,0.00018,2]
[405974441,1771487467146,-67952.81308309,0.00018,2]
[405974442,1771487467155,-261.1,0.00018,7]
[405974443,1771487467164,-173.66088786,0.00018,3]
[405974444,1771487467175,-124049.75037836,0.00018,2]
[405974445,1771487467184,-54803.0,0.00018,2]
[405974446,1771487467193,-199.50213387,0.00018,5]
[405974447,1771487467202,-2665.36101069,0.00018,2]
[405974448,1771487467213,-200.0,0.00018,2]
[405974449,1771487467222,-431.85176733,0.00018,2]
[405974450,1771487467231,-536.26020766,0.00018027,2]
[405974451,1771487467240,-1000.0,0.00018082,2]
[405974452,1771487467249,-1783.74952554,0.000181,2]
[405974453,1771487467258,-507.0,0.00018116,3]
[405974454,1771487467268,-1000.0,0.00018318,2]
[405974455,1771487467277,-300.0,0.00018355,2]
[405974456,1771487467286,-300.0,0.00018355,2]
[405974457,1771487467296,-86859.14,0.00018356,2]
[405974458,1771487467305,-1000.0,0.00018356,2]
[405974459,1771487467314,-1756.1,0.00018359,2]
[405974460,1771487467324,-214.6612564,0.0001844,2]
[405974461,1771487467333,-300.0,0.00018539,2]
[405974462,1771487467343,-300.0,0.00018539,2]
[405974463,1771487467352,-54803.0,0.0001854,2]
[405974464,1771487467362,-1000.0,0.0001863,2]
[405974465,1771487467371,-995.2101,0.000189,2]
[405974466,1771487467380,-783.31,0.000189,7]
[405974467,1771487467391,-1000.0,0.00018904,2]
[405974468,1771487467401,-1534.27420741,0.00018904,2]
[405974469,1771487467410,-300.0,0.00018999,2]
[405974470,1771487467420,-300.0,0.00018999,2]
[405974471,1771487467429,-5000.0,0.00019,2]
[405974472,1771487467440,-5181.72010553,0.00019,2]
[405974473,1771487467450,-1788.34600728,0.00019,2]
[405974474,1771487467469,-34524.05654515,0.00019,2]
[405974475,1771487467484,-350.0,0.00019,2]
[405974476,1771487467496,-500.0,0.00019,2]
[405974477,1771487467506,-502.87810401,0.00019,2]
[405974478,1771487467516,-836.74956234,0.00019,2]
[405974479,1771487467526,-520.64167325,0.00019,2]
[405974480,1771487467536,-150.75105579,0.0001902,2]
[405974481,1771487467545,-170.2577,0.0001905,2]
[405974482,1771487467555,-170.2577,0.0001905,2]
[405974483,1771487467565,-170.2577,0.0001905,2]
[405974484,1771487467575,-170.2577,0.0001905,2]
[405974485,1771487467584,-170.2577,0.0001905,2]
[405974486,1771487467594,-170.2577,0.0001905,2]
[405974487,1771487467603,-1779.49,0.00019051,7]
[405974488,1771487467612,-150.0,0.00019054,2]
[405974489,1771487467621,-54803.0,0.0001908,2]
[405974490,1771487467631,-507.0,0.00019114,4]
[405974491,1771487467640,-3000.99460052,0.00019178,2]
[405974492,1771487467649,-20189.52,0.00019178,2]
[405974493,1771487467658,-151.0,0.00019178,2]
[405974494,1771487467668,-151.0,0.00019178,2]
[405974495,1771487467677,-151.0,0.00019178,2]
[405974496,1771487467686,-235.93633334,0.00019178,2]
[405974497,1771487467695,-1727.698556,0.00019178,2]
[405974498,1771487467704,-1727.698556,0.00019178,2]
[405974499,1771487467719,-1727.698556,0.00019178,2]
[405974500,1771487467727,-1727.698556,0.00019178,2]
[405974501,1771487467737,-1727.698556,0.00019178,2]
[405974502,1771487467746,-1727.698556,0.00019178,2]
[405974503,1771487467755,-1727.698556,0.00019178,2]
[405974504,1771487467764,-1727.698556,0.00019178,2]
[405974505,1771487467773,-1727.698556,0.00019178,2]
[405974506,1771487467783,-1727.698556,0.00019178,2]
[405974507,1771487467792,-1727.698556,0.00019178,2]
[405974508,1771487467801,-1727.698556,0.00019178,2]
[405974509,1771487467810,-1727.698556,0.00019178,2]
[405974510,1771487467819,-1727.698556,0.00019178,2]
[405974511,1771487467829,-1727.698556,0.00019178,2]
[405974512,1771487467838,-1727.698556,0.00019178,2]
[405974513,1771487467847,-1727.698556,0.00019178,2]
[405974514,1771487467856,-1727.698556,0.00019178,2]
[405974515,1771487467865,-1727.698556,0.00019178,2]
[405974516,1771487467874,-1727.698566,0.00019178,2]
[405974517,1771487467884,-151.0,0.00019178,2]
[405974518,1771487467892,-151.0,0.00019178,2]
[405974519,1771487467902,-151.0,0.00019178,2]
[405974520,1771487467911,-151.0,0.00019178,2]
[405974521,1771487467919,-151.0,0.00019178,2]
[405974522,1771487467928,-169.736771,0.00019178,2]
[405974523,1771487467938,-151.0,0.00019178,2]
[405974524,1771487467948,-151.0,0.00019178,2]
[405974525,1771487467957,-161.645274,0.00019178,2]
[405974526,1771487467968,-503.71,0.00019178,30]
[405974527,1771487467977,-150.0,0.00019178,2]
[405974528,1771487467987,-1999.0,0.00019178,2]
[405974529,1771487467997,-150.0,0.00019178,2]
[405974530,1771487468006,-617.0,0.00019195,2]
[405974531,1771487468015,-3492.0,0.00019195,2]
[405974532,1771487468024,-1338.0,0.00019195,2]
[405974533,1771487468033,-1164.0,0.00019195,2]
[405974534,1771487468042,-1275.0,0.00019195,2]
[405974535,1771487468051,-1209.0,0.00019195,2]
[405974536,1771487468060,-150.0,0.00019195,2]
[405974537,1771487468070,-413.0,0.00019195,2]
[405974538,1771487468080,-2453.0,0.00019195,2]
[405974539,1771487468089,-919.0,0.00019195,2]
[405974540,1771487468100,-668.65185757,0.00019275,2]
[405974541,1771487468111,-833.92535153,0.00019275,2]
[405974542,1771487468120,-1756.1,0.00019319,2]
[405974543,1771487468130,-268.63179937,0.00019424,2]
[405974544,1771487468140,-54803.0,0.0001962,2]
[405974545,1771487468150,-7473.0,0.00019711,2]
[405974546,1771487468160,-150.0,0.00019726,2]
[405974547,1771487468170,-153.94004412,0.00019726,2]
[405974548,1771487468183,-250.0,0.00019726,2]
[405974549,1771487468192,-150.0,0.00019781,2]
[405974550,1771487468203,-150.0,0.00019836,2]
[405974551,1771487468213,-185.91023378,0.0001989,2]
[405974552,1771487468223,-1537.17608738,0.0002,2]
[405974553,1771487468232,-176.95472485,0.0002,2]
[405974554,1771487468242,-25659.70022598,0.0002,2]
[405974555,1771487468251,-2464.68,0.0002,2]
[405974556,1771487468261,-3950.0,0.0002,2]
[405974557,1771487468272,-1297.82727588,0.0002,2]
[405974558,1771487468290,-1047.67807146,0.0002,2]
[405974559,1771487468300,-2870.9054517,0.0002,2]
[405974560,1771487468309,-12956.864216,0.0002,2]
[405974561,1771487468319,-154.82360275,0.0002,2]
[405974562,1771487468329,-152.0,0.0002,2]
[405974563,1771487468338,-208.65,0.0002,2]
[405974564,1771487468348,-2000.0,0.0002,2]
[405974565,1771487468357,-1179.3008,0.0002,2]
[405974566,1771487468366,-2000.0,0.0002,2]
[405974567,1771487468376,-500.0,0.0002,7]
[405974568,1771487468386,-3378.19548174,0.0002,120]
[405974569,1771487468395,-200.0,0.0002,2]
[405974570,1771487468405,-2000.0,0.0002,2]
[405974571,1771487468415,-200.0,0.0002,2]
[405974572,1771487468424,-200.0,0.0002,2]
[405974573,1771487468434,-240.963672,0.0002,10]
[405974574,1771487468443,-189.72,0.0002,2]
[405974575,1771487468453,-152.83109542,0.0002,20]
[405974576,1771487468462,-200.0,0.0002,2]
[405974577,1771487468472,-200.0,0.0002,2]
[405974578,1771487468482,-200.0,0.0002,2]
[405974579,1771487468492,-500.011956,0.0002,2]
[405974580,1771487468502,-8720.0,0.0002001,2]
[405974581,1771487468512,-500.0,0.00020015,2]
[405974582,1771487468523,-500.0,0.00020016,2]
[405974583,1771487468534,-504.540797,0.00020017,2]
[405974584,1771487468544,-507.0,0.00020113,5]
[405974585,1771487468554,-200.0,0.000202,2]
[405974586,1771487468563,-1296.79774788,0.000202,2]
[405974587,1771487468573,-200.0,0.000202,2]
[405974588,1771487468583,-200.0,0.000202,2]
[405974589,1771487468592,-200.0,0.000202,2]
[405974590,1771487468605,-265.75235166,0.00020274,2]
[405974591,1771487468615,-155.0,0.00020277,2]
[405974592,1771487468624,-1756.1,0.00020279,2]
[405974593,1771487468634,-180.0,0.000204,120]
[405974594,1771487468643,-200.0,0.00020402,2]
[405974595,1771487468652,-200.0,0.00020402,2]
[405974596,1771487468662,-200.0,0.00020402,2]
[405974597,1771487468672,-200.0,0.00020402,2]
[405974598,1771487468681,-21590.11,0.00020548,2]
[405974599,1771487468691,-155.17,0.00020548,2]
[405974600,1771487468700,-200.0,0.00020606,2]
[405974601,1771487468709,-200.0,0.00020606,2]
[405974602,1771487468720,-200.0,0.00020606,2]
[405974603,1771487468730,-200.0,0.00020606,2]
[405974604,1771487468740,-167.27,0.00020639,2]
[405974605,1771487468749,-22723.89545609,0.000207,2]
[405974606,1771487468758,-150.0,0.00020745,36]
[405974607,1771487468768,-150.0,0.00020745,36]
[405974608,1771487468777,-150.0,0.00020745,36]
[405974609,1771487468787,-204.0,0.00020745,36]
[405974610,1771487468795,-200.0,0.00020812,2]
[405974611,1771487468805,-200.0,0.00020812,2]
[405974612,1771487468814,-200.0,0.00020812,2]
[405974613,1771487468823,-200.0,0.00020812,2]
[405974614,1771487468832,-1461.91485088,0.00020855,2]
[405974615,1771487468841,-20000.0,0.00021,2]
[405974616,1771487468850,-40000.0,0.00021,2]
[405974617,1771487468859,-1197.03605987,0.00021,2]
[405974618,1771487468869,-197.58075895,0.00021,2]
[405974619,1771487468878,-163.0,0.00021,14]
[405974620,1771487468887,-400.0,0.00021,2]
[405974621,1771487468897,-2662.37294755,0.00021005,2]
[405974622,1771487468906,-500.0,0.0002105,3]
[405974623,1771487468916,-4017.73323096,0.00021068,7]
[405974624,1771487468925,-12556.25,0.00021068,2]
[405974625,1771487468935,-507.0,0.00021111,6]
[405974626,1771487468944,-1756.1,0.00021239,2]
[405974627,1771487468953,-6399.62,0.0002137,2]
[405974628,1771487468963,-180.0,0.0002142,120]
[405974629,1771487468974,-57728.24416054,0.000215,2]
[405974630,1771487468983,-222.9000202,0.000215,2]
[405974631,1771487468993,-2007.5425872,0.00021917,2]
[405974632,1771487469002,-3043.98,0.00021918,2]
[405974633,1771487469011,-501.09172264,0.00021918,2]
[405974634,1771487469021,-5000.0,0.00021918,2]
[405974635,1771487469030,-218.439641,0.00021918,2]
[405974636,1771487469040,-386.12842,0.00021918,2]
[405974637,1771487469049,-386.12842,0.00021918,2]
[405974638,1771487469059,-386.12842,0.00021918,2]
[405974639,1771487469068,-386.12842,0.00021918,2]
[405974640,1771487469078,-386.12842,0.00021918,2]
[405974641,1771487469088,-386.12842,0.00021918,2]
[405974642,1771487469098,-386.12842,0.00021918,2]
[405974643,1771487469111,-386.12842,0.00021918,2]
[405974644,1771487469121,-386.12842,0.00021918,2]
[405974645,1771487469131,-386.12842,0.00021918,2]
[405974646,1771487469142,-386.12842,0.00021918,2]
[405974647,1771487469152,-386.12842,0.00021918,2]
[405974648,1771487469161,-386.12842,0.00021918,2]
[405974649,1771487469171,-386.12842,0.00021918,2]
[405974650,1771487469182,-386.12842,0.00021918,2]
[405974651,1771487469194,-386.12842,0.00021918,2]
[405974652,1771487469207,-386.12842,0.00021918,2]
[405974653,1771487469218,-386.12842,0.00021918,2]
[405974654,1771487469227,-386.12842,0.00021918,2]
[405974655,1771487469236,-386.128421,0.00021918,2]
[405974656,1771487469245,-166.0,0.00021918,2]
[405974657,1771487469255,-166.0,0.00021918,2]
[405974658,1771487469264,-166.0,0.00021918,2]
[405974659,1771487469274,-166.0,0.00021918,2]
[405974660,1771487469283,-166.0,0.00021918,2]
[405974661,1771487469292,-170.39188291,0.00021918,2]
[405974662,1771487469301,-166.0,0.00021918,2]
[405974663,1771487469310,-166.0,0.00021918,2]
[405974664,1771487469320,-800.0,0.00021918,2]
[405974665,1771487469329,-800.0,0.00021918,2]
[405974666,1771487469339,-800.0,0.00021918,2]
[405974667,1771487469348,-800.0,0.00021918,2]
[405974668,1771487469357,-800.0,0.00021918,2]
[405974669,1771487469366,-800.0,0.00021918,2]
[405974670,1771487469376,-800.0,0.00021918,2]
[405974671,1771487469385,-392.34324067,0.00021918,2]
[405974672,1771487469395,-166.0,0.00021918,2]
[405974673,1771487469557,-800.0,0.00021918,2]
[405974674,1771487469567,-800.0,0.00021918,2]
[405974675,1771487469576,-800.0,0.00021918,2]
[405974676,1771487469586,-800.0,0.00021918,2]
[405974677,1771487469595,-800.0,0.00021918,2]
[405974678,1771487469605,-500.0,0.00021918,2]
[405974679,1771487469615,-500.0,0.00021918,2]
[405974680,1771487469624,-204.89,0.00021921,2]
[405974681,1771487469633,-508.00301164,0.00021973,2]
[405974682,1771487469643,-500.0,0.00021973,2]
[405974683,1771487469653,-500.0,0.00021973,2]
[405974684,1771487469663,-3995.99,0.00022,7]
[405974685,1771487469672,-479.97354669,0.00022,2]
[405974686,1771487469681,-163.53,0.00022,2]
[405974687,1771487469690,-160.0,0.00022,2]
[405974688,1771487469699,-32814.39950873,0.00022,2]
[405974689,1771487469708,-163.98,0.00022,2]
[405974690,1771487469721,-1495.79892624,0.00022,30]
[405974691,1771487469732,-500.0,0.00022,2]
[405974692,1771487469741,-222.45,0.00022,2]
[405974693,1771487469751,-411681.65,0.00022,2]
[405974694,1771487469760,-693.3919763,0.00022014,2]
[405974695,1771487469770,-864.78058953,0.00022014,2]
[405974696,1771487469780,-572.90378275,0.00022028,2]
[405974697,1771487469790,-500.0,0.00022028,2]
[405974698,1771487469799,-500.0,0.00022082,2]
[405974699,1771487469809,-496.21514564,0.000221,2]
[405974700,1771487469819,-507.0,0.00022109,7]
[405974701,1771487469829,-241.11906527,0.0002211,2]
[405974702,1771487469840,-500.0,0.00022137,2]
[405974703,1771487469851,-500.0,0.00022192,2]
[405974704,1771487469860,-617.0,0.00022195,2]
[405974705,1771487469869,-3492.0,0.00022195,2]
[405974706,1771487469879,-1338.0,0.00022195,2]
[405974707,1771487469888,-1275.0,0.00022195,2]
[405974708,1771487469897,-1209.0,0.00022195,2]
[405974709,1771487469906,-150.0,0.00022195,2]
[405974710,1771487469915,-413.0,0.00022195,2]
[405974711,1771487469925,-2453.0,0.00022195,2]
[405974712,1771487469934,-919.0,0.00022195,2]
[405974713,1771487469942,-1756.1,0.00022199,2]
[405974714,1771487469952,-500.0,0.00022247,2]
[405974715,1771487469961,-500.0,0.00022302,2]
[405974716,1771487469971,-500.0,0.00022356,2]
[405974717,1771487469981,-652.75,0.000224,14]
[405974718,1771487469990,-500.0,0.00022411,2]
[405974719,1771487469999,-12599.79,0.00022466,2]
[405974720,1771487470008,-500.0,0.00022466,2]
[405974721,1771487470017,-180.0,0.00022491,120]
[405974722,1771487470026,-35622.04719428,0.000225,2]
[405974723,1771487470035,-411681.65,0.000225,2]
[405974724,1771487470045,-500.0,0.00022521,2]
[405974725,1771487470054,-500.0,0.00022576,2]
[405974726,1771487470065,-3618.00759225,0.000226,2]
[405974727,1771487470076,-500.0,0.0002263,2]
[405974728,1771487470086,-500.0,0.00022685,2]
[405974729,1771487470096,-525.1365583,0.0002271,2]
[405974730,1771487470109,-500.0,0.0002274,2]
[405974731,1771487470118,-500.0,0.00022795,2]
[405974732,1771487470127,-500.0,0.0002285,2]
[405974733,1771487470137,-500.0,0.00022904,2]
[405974734,1771487470149,-500.0,0.00022959,2]
[405974735,1771487470158,-477.43093979,0.00023,2]
[405974736,1771487470166,-500.0,0.00023,3]
[405974737,1771487470177,-500.0,0.00023,3]
[405974738,1771487470193,-3324.18448513,0.00023,2]
[405974739,1771487470209,-450.0,0.00023,2]
[405974740,1771487470219,-160.0,0.00023,2]
[405974741,1771487470227,-411681.65,0.00023,2]
[405974742,1771487470237,-500.0,0.00023014,2]
[405974743,1771487470246,-500.0,0.00023069,2]
[405974744,1771487470255,-3995.99,0.000231,7]
[405974745,1771487470264,-507.0,0.00023107,8]
[405974746,1771487470273,-500.0,0.00023123,2]
[405974747,1771487470282,-1756.1,0.00023159,2]
[405974748,1771487470291,-500.0,0.00023178,2]
[405974749,1771487470300,-636.91971238,0.000232,2]
[405974750,1771487470310,-500.0,0.00023233,2]
[405974751,1771487470319,-500.0,0.00023288,2]
[405974752,1771487470327,-500.0,0.00023343,2]
[405974753,1771487470336,-500.0,0.00023397,2]
[405974754,1771487470346,-500.0,0.00023452,2]
[405974755,1771487470356,-200.0,0.000235,2]
[405974756,1771487470365,-411681.65,0.000235,2]
[405974757,1771487470374,-500.0,0.00023507,2]
[405974758,1771487470384,-500.0,0.00023562,2]
[405974759,1771487470393,-180.0,0.00023616,120]
[405974760,1771487470403,-500.0,0.00023617,2]
[405974761,1771487470412,-500.0,0.00023671,2]
[405974762,1771487470421,-620.6458252,0.00023726,2]
[405974763,1771487470431,-160.0,0.00024,7]
[405974764,1771487470440,-1025.32704385,0.00024,2]
[405974765,1771487470450,-3600.0,0.00024,2]
[405974766,1771487470459,-1239.93170199,0.00024,2]
[405974767,1771487470469,-1756.1,0.0002412,2]
[405974768,1771487470478,-423.60487397,0.0002421,2]
[405974769,1771487470488,-3710.94173027,0.0002421,2]
[405974770,1771487470497,-167.27,0.00024566,2]
[405974771,1771487470506,-168.27464273,0.0002465,2]
[405974772,1771487470515,-1536.36,0.00024658,2]
[405974773,1771487470524,-1000.0,0.00024658,2]
[405974774,1771487470533,-151.0,0.00024658,2]
[405974775,1771487470544,-151.0,0.00024658,2]
[405974776,1771487470554,-151.0,0.00024658,2]
[405974777,1771487470563,-151.0,0.00024658,2]
[405974778,1771487470572,-151.0,0.00024658,2]
[405974779,1771487470581,-151.0,0.00024658,2]
[405974780,1771487470591,-151.0,0.00024658,2]
[405974781,1771487470600,-151.0,0.00024658,2]
[405974782,1771487470609,-161.122607,0.00024658,2]
[405974783,1771487470619,-150.0,0.00024658,2]
[405974784,1771487470628,-2576.29174672,0.0002469,2]
[405974785,1771487470636,-719.04747942,0.00024753,2]
[405974786,1771487470645,-896.77747135,0.00024753,2]
[405974787,1771487470655,-48690.49929255,0.000249,7]
[405974788,1771487470665,-3995.99,0.00025,7]
[405974789,1771487470674,-1115.79065745,0.00025,2]
[405974790,1771487470683,-207.86013759,0.00025,2]
[405974791,1771487470692,-1787.86330914,0.00025,2]
[405974792,1771487470701,-18505.89356014,0.00025,2]
[405974793,1771487470710,-540.0,0.00025,2]
[405974794,1771487470719,-611.93274613,0.00025,2]
[405974795,1771487470728,-3049.60631286,0.00025,2]
[405974796,1771487470737,-7137.97309979,0.00025,2]
[405974797,1771487470747,-167.60434781,0.00025,2]
[405974798,1771487470756,-10015.51113164,0.00025,2]
[405974799,1771487470765,-160.0,0.00025,7]
[405974800,1771487470774,-150.0,0.00025,2]
[405974801,1771487470783,-152.0,0.00025,17]
[405974802,1771487470792,-173.66088786,0.00025,7]
[405974803,1771487470801,-500.0,0.00025,3]
[405974804,1771487470810,-500.0,0.00025,2]
[405974805,1771487470819,-339.0,0.00025,2]
[405974806,1771487470827,-151.0,0.00025023,11]
[405974807,1771487470836,-1756.1,0.0002508,2]
[405974808,1771487470845,-617.0,0.00025195,2]
[405974809,1771487470854,-3492.0,0.00025195,2]
[405974810,1771487470863,-1275.0,0.00025195,2]
[405974811,1771487470872,-1209.0,0.00025195,2]
[405974812,1771487470882,-413.0,0.00025195,2]
[405974813,1771487470891,-2453.0,0.00025195,2]
[405974814,1771487470900,-919.0,0.00025195,2]
[405974815,1771487470909,-49616.91407141,0.0002539,2]
[405974816,1771487470919,-222.45,0.00025742,7]
[405974817,1771487470928,-3357.5524142,0.00025795,2]
[405974818,1771487470937,-150.0,0.0002589,2]
[405974819,1771487470946,-601.97383725,0.0002599,2]
[405974820,1771487470955,-228.783418,0.00025999,120]
[405974821,1771487470965,-4531.24945973,0.00026,2]
[405974822,1771487470976,-216.87307179,0.00026,2]
[405974823,1771487470985,-210.8,0.00026,2]
[405974824,1771487470994,-286.0,0.00026,36]
[405974825,1771487471003,-267.0,0.00026,36]
[405974826,1771487471013,-169.0,0.00026,2]
[405974827,1771487471022,-1756.1,0.0002604,2]
[405974828,1771487471030,-500.0,0.0002605,5]
[405974829,1771487471040,-3995.99,0.000262,7]
[405974830,1771487471049,-158.85855114,0.000263,2]
[405974831,1771487471058,-27527.40027623,0.000264,2]
[405974832,1771487471067,-160.0,0.000268,10]
[405974833,1771487471076,-400.0,0.0002697,2]
[405974834,1771487471085,-250.0,0.00027,2]
[405974835,1771487471094,-1036.53509216,0.00027,2]
[405974836,1771487471109,-530.0,0.00027,2]
[405974837,1771487471124,-1756.1,0.00027,2]
[405974838,1771487471135,-3833.922401,0.00027,2]
[405974839,1771487471145,-550.0,0.00027,2]
[405974840,1771487471155,-3695.53,0.00027123,2]
[405974841,1771487471165,-150.0,0.00027185,2]
[405974842,1771487471176,-150.0,0.00027369,2]
[405974843,1771487471187,-236.10614528,0.0002737,2]
[405974844,1771487471196,-415.38461538,0.0002737,2]
[405974845,1771487471204,-251.31923705,0.0002737,2]
[405974846,1771487471213,-486.1284603,0.0002737,2]
[405974847,1771487471223,-208.3407687,0.0002737,2]
[405974848,1771487471232,-4119.38722862,0.0002739,2]
[405974849,1771487471242,-8138.9009226,0.0002739,2]
[405974850,1771487471252,-157.55314717,0.0002739,120]
[405974851,1771487471261,-527.88708327,0.00027397,2]
[405974852,1771487471270,-1000.0,0.00027397,120]
[405974853,1771487471279,-1488.3,0.00027397,120]
[405974854,1771487471288,-268.33598904,0.00027397,7]
[405974855,1771487471297,-1449.96,0.00027397,2]
[405974856,1771487471306,-1536.36,0.00027397,2]
[405974857,1771487471315,-1000.0,0.00027397,20]
[405974858,1771487471324,-300.0,0.00027397,2]
[405974859,1771487471333,-520.59,0.00027397,2]
[405974860,1771487471342,-513.838107,0.00027397,2]
[405974861,1771487471351,-513.838107,0.00027397,2]
[405974862,1771487471360,-513.838107,0.00027397,2]
[405974863,1771487471371,-513.838107,0.00027397,2]
[405974864,1771487471381,-513.838107,0.00027397,2]
[405974865,1771487471391,-513.838107,0.00027397,2]
[405974866,1771487471400,-513.838107,0.00027397,2]
[405974867,1771487471410,-513.838107,0.00027397,2]
[405974868,1771487471420,-513.838107,0.00027397,2]
[405974869,1771487471428,-513.838107,0.00027397,2]
[405974870,1771487471438,-513.838107,0.00027397,2]
[405974871,1771487471447,-513.838107,0.00027397,2]
[405974872,1771487471457,-513.838107,0.00027397,2]
[405974873,1771487471466,-513.838107,0.00027397,2]
[405974874,1771487471475,-513.838107,0.00027397,2]
[405974875,1771487471484,-513.838107,0.00027397,2]
[405974876,1771487471493,-513.838107,0.00027397,2]
[405974877,1771487471503,-513.838107,0.00027397,2]
[405974878,1771487471512,-513.838107,0.00027397,2]
[405974879,1771487471521,-513.83809977,0.00027397,2]
[405974880,1771487471531,-1724.884571,0.00027397,2]
[405974881,1771487471540,-1724.884571,0.00027397,2]
[405974882,1771487471549,-1724.884571,0.00027397,2]
[405974883,1771487471559,-1724.884571,0.00027397,2]
[405974884,1771487471568,-1724.884571,0.00027397,2]
[405974885,1771487471576,-1724.884571,0.00027397,2]
[405974886,1771487471586,-1724.884571,0.00027397,2]
[405974887,1771487471594,-1724.884571,0.00027397,2]
[405974888,1771487471603,-1724.884571,0.00027397,2]
[405974889,1771487471612,-1724.884571,0.00027397,2]
[405974890,1771487471621,-1724.884571,0.00027397,2]
[405974891,1771487471630,-1724.884571,0.00027397,2]
[405974892,1771487471639,-1724.884571,0.00027397,2]
[405974893,1771487471649,-1724.884571,0.00027397,2]
[405974894,1771487471658,-1724.884571,0.00027397,2]
[405974895,1771487471667,-1724.884571,0.00027397,2]
[405974896,1771487471676,-1724.884571,0.00027397,2]
[405974897,1771487471684,-1724.884571,0.00027397,2]
[405974898,1771487471693,-1724.884571,0.00027397,2]
[405974899,1771487471702,-1724.884577,0.00027397,2]
[405974900,1771487471711,-151.0,0.00027397,2]
[405974901,1771487471719,-151.0,0.00027397,2]
[405974902,1771487471728,-151.0,0.00027397,2]
[405974903,1771487471852,-161.390563,0.00027397,2]
[405974904,1771487471863,-1486.19757,0.00027397,2]
[405974905,1771487471872,-1486.19757,0.00027397,2]
[405974906,1771487471882,-1486.19757,0.00027397,2]
[405974907,1771487471891,-1486.19757,0.00027397,2]
[405974908,1771487471900,-1486.19757,0.00027397,2]
[405974909,1771487471910,-1486.19757,0.00027397,2]
[405974910,1771487471919,-1486.19757,0.00027397,2]
[405974911,1771487471928,-1486.19757,0.00027397,2]
[405974912,1771487471937,-1486.19757,0.00027397,2]
[405974913,1771487471946,-1486.19757,0.00027397,2]
[405974914,1771487471955,-1486.19757,0.00027397,2]
[405974915,1771487471965,-1486.19757,0.00027397,2]
[405974916,1771487471974,-1486.19757,0.00027397,2]